[Event "Live Chess"]
[Site "Chess.com"]
[Date "2024.06.02"]
[Round "-"]
[White "febray_27"]
[Black "McFim"]
[Result "1-0"]
[WhiteElo "2048"]
[BlackElo "1700"]
[TimeControl "300"]
[EndTime "23:15:21 PDT"]
[Termination "febray_27 won by resignation"]

1. Nf3 {[%clk 0:04:57.4]} 1... d5 {[%clk 0:04:58.3]} 2. d4 {[%clk 0:04:56.3]}
2... Nf6 {[%clk 0:04:57.1]} 3. g3 {[%clk 0:04:55.5]} 3... Bf5 {[%clk 0:04:54.2]}
4. Bg2 {[%clk 0:04:54.8]} 4... e6 {[%clk 0:04:52.9]} 5. O-O {[%clk 0:04:53.7]}
5... c6 {[%clk 0:04:50.1]} 6. c4 {[%clk 0:04:52.9]} 6... Be7 {[%clk 0:04:48.5]}
7. Nc3 {[%clk 0:04:29.4]} 7... h6 {[%clk 0:04:45.5]} 8. b3 {[%clk 0:04:25.5]}
8... a6 {[%clk 0:04:44.4]} 9. Bb2 {[%clk 0:04:24.6]} 9... O-O {[%clk 0:04:41.7]}
10. Rc1 {[%clk 0:04:24.1]} 10... Nbd7 {[%clk 0:04:38.7]} 11. Re1 {[%clk
0:04:23.5]} 11... Ne4 {[%clk 0:04:35.3]} 12. Nxe4 {[%clk 0:04:11.1]} 12... Bxe4
{[%clk 0:04:33.2]} 13. cxd5 {[%clk 0:04:05.6]} 13... exd5 {[%clk 0:04:30.5]} 14.
Bh3 {[%clk 0:04:01.9]} 14... Bb4 {[%clk 0:04:21.3]} 15. Bc3 {[%clk 0:03:59.5]}
15... Ba3 {[%clk 0:04:18]} 16. Ra1 {[%clk 0:03:56.4]} 16... Qf6 {[%clk
0:03:44.2]} 17. Bxd7 {[%clk 0:03:52.5]} 1-0

[Event "Live Chess"]
[Site "Chess.com"]
[Date "2024.06.02"]
[Round "-"]
[White "booktrunk"]
[Black "WilliamofOrange16th"]
[Result "0-1"]
[WhiteElo "1537"]
[BlackElo "1979"]
[TimeControl "300"]
[EndTime "23:15:24 PDT"]
[Termination "WilliamofOrange16th won by checkmate"]

1. d4 {[%clk 0:04:53.1]} 1... Nf6 {[%clk 0:04:56.8]} 2. Nc3 {[%clk 0:04:53]}
2... d5 {[%clk 0:04:54.2]} 3. Bf4 {[%clk 0:04:50.6]} 3... c6 {[%clk 0:04:53.2]}
4. e3 {[%clk 0:04:43.3]} 4... Bf5 {[%clk 0:04:52.2]} 5. Bd3 {[%clk 0:04:41.1]}
5... Bxd3 {[%clk 0:04:51]} 6. cxd3 {[%clk 0:04:32.6]} 6... e6 {[%clk 0:04:50.9]}
7. Nf3 {[%clk 0:04:30]} 7... Bd6 {[%clk 0:04:48.7]} 8. Bxd6 {[%clk 0:04:27.7]}
8... Qxd6 {[%clk 0:04:47.6]} 9. Ne5 {[%clk 0:04:27.5]} 9... Nbd7 {[%clk
0:04:45.7]} 10. Nxd7 {[%clk 0:04:25.6]} 10... Nxd7 {[%clk 0:04:44.2]} 11. O-O
{[%clk 0:04:23.4]} 11... O-O {[%clk 0:04:42.7]} 12. Qf3 {[%clk 0:04:20.6]} 12...
e5 {[%clk 0:04:36.2]} 13. dxe5 {[%clk 0:04:18.8]} 13... Nxe5 {[%clk 0:04:36.1]}
14. Qf4 {[%clk 0:04:14.2]} 14... Rae8 {[%clk 0:04:26]} 15. d4 {[%clk 0:04:12.8]}
15... Nc4 {[%clk 0:04:25.1]} 16. Qxd6 {[%clk 0:04:08.2]} 16... Nxd6 {[%clk
0:04:25]} 17. Rae1 {[%clk 0:04:05.6]} 17... f5 {[%clk 0:04:23.6]} 18. b3 {[%clk
0:04:03.6]} 18... Re7 {[%clk 0:04:15]} 19. Na4 {[%clk 0:04:01.7]} 19... b6
{[%clk 0:04:13.3]} 20. Nc3 {[%clk 0:03:59.5]} 20... Rfe8 {[%clk 0:04:11.5]} 21.
h3 {[%clk 0:03:56.9]} 21... f4 {[%clk 0:04:10.4]} 22. Nd1 {[%clk 0:03:51.9]}
22... fxe3 {[%clk 0:04:07.1]} 23. Rxe3 {[%clk 0:03:48.4]} 23... Rxe3 {[%clk
0:04:05.7]} 24. fxe3 {[%clk 0:03:46.3]} 24... Ne4 {[%clk 0:04:01.2]} 25. Re1
{[%clk 0:03:41.7]} 25... Rf8 {[%clk 0:03:54.9]} 26. Rf1 {[%clk 0:03:37.2]} 26...
Rxf1+ {[%clk 0:03:44.8]} 27. Kxf1 {[%clk 0:03:34.9]} 27... Kf7 {[%clk 0:03:44]}
28. Ke2 {[%clk 0:03:33.7]} 28... Ke6 {[%clk 0:03:41.5]} 29. Kf3 {[%clk 0:03:32]}
29... h5 {[%clk 0:03:31.6]} 30. a3 {[%clk 0:03:26.8]} 30... a5 {[%clk
0:03:25.5]} 31. g4 {[%clk 0:03:23.9]} 31... Nd2+ {[%clk 0:03:23.6]} 32. Kf4
{[%clk 0:03:20.2]} 32... hxg4 {[%clk 0:03:22]} 33. hxg4 {[%clk 0:03:17.8]} 33...
Nxb3 {[%clk 0:03:21.5]} 34. Nc3 {[%clk 0:03:15.9]} 34... Nd2 {[%clk 0:03:09.7]}
35. Na4 {[%clk 0:03:13.8]} 35... b5 {[%clk 0:03:07.7]} 36. Nc5+ {[%clk
0:03:12.7]} 36... Ke7 {[%clk 0:02:59.2]} 37. Ke5 {[%clk 0:03:10.2]} 37... Nc4+
{[%clk 0:02:55.9]} 38. Kf4 {[%clk 0:03:07.4]} 38... Nxa3 {[%clk 0:02:53.9]} 39.
e4 {[%clk 0:03:06.6]} 39... dxe4 {[%clk 0:02:42.2]} 40. Kxe4 {[%clk 0:03:04.7]}
40... a4 {[%clk 0:02:33]} 41. d5 {[%clk 0:03:03.1]} 41... Kd6 {[%clk 0:02:24.7]}
42. Nb7+ {[%clk 0:02:58.3]} 42... Kc7 {[%clk 0:02:23.2]} 43. dxc6 {[%clk
0:02:56.4]} 43... Kxc6 {[%clk 0:02:21.9]} 44. Nd8+ {[%clk 0:02:52.1]} 44... Kd6
{[%clk 0:02:13.4]} 45. Nb7+ {[%clk 0:02:50.3]} 45... Ke6 {[%clk 0:02:11.5]} 46.
Nc5+ {[%clk 0:02:49]} 46... Kf6 {[%clk 0:02:08.1]} 47. Kd3 {[%clk 0:02:43.7]}
47... Ke5 {[%clk 0:01:40.8]} 48. Nd7+ {[%clk 0:02:37.3]} 48... Kf4 {[%clk
0:01:39]} 49. Nc5 {[%clk 0:02:30.1]} 49... Kxg4 {[%clk 0:01:35.6]} 50. Kc3
{[%clk 0:02:29.6]} 50... Nb1+ {[%clk 0:01:30.8]} 51. Kb4 {[%clk 0:02:29.5]}
51... a3 {[%clk 0:01:29.6]} 52. Nb3 {[%clk 0:02:26.8]} 52... Kf3 {[%clk
0:01:22]} 53. Kxb5 {[%clk 0:02:26.7]} 53... a2 {[%clk 0:01:18.6]} 54. Kc4 {[%clk
0:02:26.6]} 54... g5 {[%clk 0:01:16.8]} 55. Kd3 {[%clk 0:02:25.2]} 55... g4
{[%clk 0:01:15.7]} 56. Nd4+ {[%clk 0:02:19.5]} 56... Kf2 {[%clk 0:01:14.2]} 57.
Nc2 {[%clk 0:02:18.2]} 57... g3 {[%clk 0:01:11.9]} 58. Kc4 {[%clk 0:02:13.5]}
58... g2 {[%clk 0:01:09.6]} 59. Kb3 {[%clk 0:02:13.4]} 59... a1=Q {[%clk
0:01:07.4]} 60. Nxa1 {[%clk 0:02:11.5]} 60... g1=Q {[%clk 0:01:05.9]} 61. Kb2
{[%clk 0:02:11.4]} 61... Nd2 {[%clk 0:01:03.7]} 62. Nc2 {[%clk 0:02:09.9]} 62...
Qg7+ {[%clk 0:01:02.2]} 63. Kc1 {[%clk 0:02:07.9]} 63... Qc3 {[%clk 0:00:59.3]}
64. Kd1 {[%clk 0:02:05.5]} 64... Nf3 {[%clk 0:00:58.1]} 65. Kc1 {[%clk
0:01:59.1]} 65... Nd4 {[%clk 0:00:55.6]} 66. Kb1 {[%clk 0:01:52.7]} 66... Qxc2+
{[%clk 0:00:54.3]} 67. Ka1 {[%clk 0:01:52]} 67... Nb3# {[%clk 0:00:53.4]} 0-1

[Event "Live Chess"]
[Site "Chess.com"]
[Date "2024.06.02"]
[Round "-"]
[White "Isambard_Thomas"]
[Black "matt1979"]
[Result "1-0"]
[WhiteElo "2152"]
[BlackElo "1377"]
[TimeControl "300"]
[EndTime "23:15:26 PDT"]
[Termination "Isambard_Thomas won on time"]

1. d4 {[%clk 0:04:58.6]} 1... e6 {[%clk 0:04:57.1]} 2. Nf3 {[%clk 0:04:58.1]}
2... f5 {[%clk 0:04:55.6]} 3. Bg5 {[%clk 0:04:57.7]} 3... Nf6 {[%clk 0:04:52]}
4. e3 {[%clk 0:04:56.4]} 4... b6 {[%clk 0:04:48.2]} 5. Bd3 {[%clk 0:04:55.3]}
5... Bb7 {[%clk 0:04:46.6]} 6. Nbd2 {[%clk 0:04:54.5]} 6... Be7 {[%clk
0:04:43.3]} 7. h4 {[%clk 0:04:53.8]} 7... h6 {[%clk 0:04:40.2]} 8. Bf4 {[%clk
0:04:52.5]} 8... d6 {[%clk 0:04:38.3]} 9. c3 {[%clk 0:04:51.3]} 9... O-O {[%clk
0:04:29.3]} 10. Qb3 {[%clk 0:04:49.5]} 10... d5 {[%clk 0:04:19.2]} 11. Ne5
{[%clk 0:04:45.8]} 11... Nbd7 {[%clk 0:04:09.8]} 12. Ndf3 {[%clk 0:04:44.8]}
12... Nxe5 {[%clk 0:04:03.9]} 13. Nxe5 {[%clk 0:04:43.8]} 13... Bd6 {[%clk
0:03:59.7]} 14. Ng6 {[%clk 0:04:38.2]} 14... Rf7 {[%clk 0:03:54.9]} 15. Be5
{[%clk 0:04:23.7]} 15... Bxe5 {[%clk 0:03:50.1]} 16. Nxe5 {[%clk 0:04:11.8]}
16... Ne4 {[%clk 0:03:42.4]} 17. Nxf7 {[%clk 0:04:09]} 17... Kxf7 {[%clk
0:03:39.9]} 18. Bxe4 {[%clk 0:04:02.8]} 18... fxe4 {[%clk 0:03:37.9]} 19. Qd1
{[%clk 0:04:00.8]} 19... Qf6 {[%clk 0:03:32.3]} 20. Qg4 {[%clk 0:03:56.3]} 20...
Kg8 {[%clk 0:03:26.9]} 21. Kf1 {[%clk 0:03:46.6]} 21... Rf8 {[%clk 0:03:23.7]}
22. Qg3 {[%clk 0:03:43.3]} 22... Ba6+ {[%clk 0:03:18.4]} 23. Ke1 {[%clk
0:03:39.2]} 23... Qf5 {[%clk 0:03:04.9]} 24. Rc1 {[%clk 0:03:06.8]} 24... Qh5
{[%clk 0:03:02.2]} 25. Rc2 {[%clk 0:03:04.2]} 25... Bd3 {[%clk 0:02:54]} 26. Rd2
{[%clk 0:03:03]} 26... Rf6 {[%clk 0:02:37.2]} 27. Qxc7 {[%clk 0:02:59.9]} 27...
Qg4 {[%clk 0:02:26.1]} 28. Qg3 {[%clk 0:02:57.5]} 28... Qf5 {[%clk 0:02:20.6]}
29. Kd1 {[%clk 0:02:44.2]} 29... Rg6 {[%clk 0:02:17]} 30. Qh3 {[%clk 0:02:37]}
30... Qh5+ {[%clk 0:02:07.2]} 31. Kc1 {[%clk 0:02:33.9]} 31... b5 {[%clk
0:01:42.2]} 32. Rg1 {[%clk 0:02:32.5]} 32... Be2 {[%clk 0:01:22.9]} 33. Qh2
{[%clk 0:02:02.2]} 33... a6 {[%clk 0:00:58.1]} 34. Qd6 {[%clk 0:01:31.4]} 34...
e5 {[%clk 0:00:46.3]} 35. Qxe5 {[%clk 0:01:27.4]} 35... Qxh4 {[%clk 0:00:35.3]}
36. Rxe2 {[%clk 0:01:25.8]} 36... Kh7 {[%clk 0:00:13.7]} 37. Qxd5 {[%clk
0:01:16.1]} 37... Qh2 {[%clk 0:00:09]} 38. Rge1 {[%clk 0:01:10.6]} 38... Rxg2
{[%clk 0:00:06.4]} 39. Qxe4+ {[%clk 0:01:09.5]} 39... g6 {[%clk 0:00:02.8]} 40.
Qe7+ {[%clk 0:01:06.4]} 40... Kg8 {[%clk 0:00:01.3]} 41. Qe8+ {[%clk 0:00:56.3]}
41... Kh7 {[%clk 0:00:00.3]} 42. Qd7+ {[%clk 0:00:54.6]} 1-0

[Event "Live Chess"]
[Site "Chess.com"]
[Date "2024.06.02"]
[Round "-"]
[White "Ocelot32"]
[Black "Greenbecker"]
[Result "0-1"]
[WhiteElo "1373"]
[BlackElo "1713"]
[TimeControl "300"]
[EndTime "23:16:00 PDT"]
[Termination "Greenbecker won by resignation"]

1. e4 {[%clk 0:04:57.1]} 1... Nc6 {[%clk 0:04:57.6]} 2. Nf3 {[%clk 0:04:55.6]}
2... d6 {[%clk 0:04:54.9]} 3. Bc4 {[%clk 0:04:51.3]} 3... e6 {[%clk 0:04:51.3]}
4. d4 {[%clk 0:04:49.2]} 4... Nf6 {[%clk 0:04:50.3]} 5. Nc3 {[%clk 0:04:47.6]}
5... Be7 {[%clk 0:04:48.7]} 6. O-O {[%clk 0:04:46.1]} 6... O-O {[%clk
0:04:47.5]} 7. Re1 {[%clk 0:04:44.9]} 7... b6 {[%clk 0:04:43.8]} 8. Bf4 {[%clk
0:04:40.8]} 8... Bb7 {[%clk 0:04:42.6]} 9. e5 {[%clk 0:04:38.6]} 9... dxe5
{[%clk 0:04:40.9]} 10. dxe5 {[%clk 0:04:37.3]} 10... Qxd1 {[%clk 0:04:38]} 11.
Raxd1 {[%clk 0:04:36]} 11... Nh5 {[%clk 0:04:32.7]} 12. Be3 {[%clk 0:04:31.1]}
12... g6 {[%clk 0:04:21.6]} 13. Rd7 {[%clk 0:04:29.3]} 13... Rac8 {[%clk
0:04:17.4]} 14. Nb5 {[%clk 0:04:19.1]} 14... a6 {[%clk 0:03:57.6]} 15. Nbd4
{[%clk 0:03:48]} 15... Nxd4 {[%clk 0:03:47.4]} 16. Nxd4 {[%clk 0:03:43.5]} 16...
Rfe8 {[%clk 0:03:41.7]} 17. Rd1 {[%clk 0:03:29.7]} 17... c5 {[%clk 0:03:35.5]}
18. Ne2 {[%clk 0:03:26]} 18... Bc6 {[%clk 0:03:28.9]} 19. Ra7 {[%clk 0:03:12]}
19... b5 {[%clk 0:03:24.1]} 20. Bd3 {[%clk 0:03:05.8]} 20... c4 {[%clk 0:03:19]}
21. Bxc4 {[%clk 0:02:58.6]} 21... bxc4 {[%clk 0:03:17.3]} 22. Nf4 {[%clk
0:02:57.8]} 22... Nxf4 {[%clk 0:03:12.9]} 23. Bxf4 {[%clk 0:02:57.3]} 23... Bb5
{[%clk 0:03:05.2]} 24. Bh6 {[%clk 0:02:52.7]} 24... Bf8 {[%clk 0:03:03.6]} 25.
Bg5 {[%clk 0:02:51]} 25... Bg7 {[%clk 0:02:57.2]} 26. b3 {[%clk 0:02:47.3]}
26... Bxe5 {[%clk 0:02:50.7]} 27. a4 {[%clk 0:02:45.3]} 27... cxb3 {[%clk
0:02:31.1]} 28. axb5 {[%clk 0:02:40.7]} 28... bxc2 {[%clk 0:02:30]} 29. Rc1
{[%clk 0:02:39.2]} 29... Bb2 {[%clk 0:02:25.9]} 30. Rb1 {[%clk 0:02:28]} 0-1

[Event "Live Chess"]
[Site "Chess.com"]
[Date "2024.06.02"]
[Round "-"]
[White "JohanKjeldahl"]
[Black "Dhaydon19"]
[Result "0-1"]
[WhiteElo "1856"]
[BlackElo "2676"]
[TimeControl "300"]
[EndTime "23:16:18 PDT"]
[Termination "Dhaydon19 won by resignation"]

1. c4 {[%clk 0:04:57]} 1... c6 {[%clk 0:04:59.5]} 2. Nc3 {[%clk 0:04:55.5]} 2...
d5 {[%clk 0:04:59.1]} 3. d4 {[%clk 0:04:53.5]} 3... Nf6 {[%clk 0:04:57.8]} 4.
Nf3 {[%clk 0:04:51.4]} 4... e6 {[%clk 0:04:57.4]} 5. Bg5 {[%clk 0:04:48]} 5...
Be7 {[%clk 0:04:56.5]} 6. e3 {[%clk 0:04:46.7]} 6... Nbd7 {[%clk 0:04:55.1]} 7.
Bd3 {[%clk 0:04:45.2]} 7... O-O {[%clk 0:04:54.5]} 8. Qc2 {[%clk 0:04:43.5]}
8... h6 {[%clk 0:04:48.9]} 9. Bxf6 {[%clk 0:04:40.4]} 9... Nxf6 {[%clk
0:04:47.6]} 10. O-O {[%clk 0:04:38.1]} 10... Bd6 {[%clk 0:04:46.1]} 11. Rac1
{[%clk 0:04:32.3]} 11... Qe7 {[%clk 0:04:44.6]} 12. Ne2 {[%clk 0:04:28.1]} 12...
Bd7 {[%clk 0:04:42.2]} 13. Ng3 {[%clk 0:04:25.8]} 13... Rac8 {[%clk 0:04:38.9]}
14. b3 {[%clk 0:04:21.8]} 14... Ng4 {[%clk 0:04:37.7]} 15. Qb2 {[%clk
0:04:06.6]} 15... Ba3 {[%clk 0:04:35]} 16. Qc2 {[%clk 0:04:02.5]} 16... Bxc1
{[%clk 0:04:34.4]} 17. Rxc1 {[%clk 0:04:01.2]} 17... f5 {[%clk 0:04:33.3]} 18.
Ne5 {[%clk 0:03:57.6]} 18... Nxe5 {[%clk 0:04:31.8]} 19. dxe5 {[%clk 0:03:56.1]}
19... f4 {[%clk 0:04:26.7]} 20. exf4 {[%clk 0:03:53]} 20... Rxf4 {[%clk
0:04:25.6]} 21. Qd2 {[%clk 0:03:45.3]} 21... Rcf8 {[%clk 0:04:22.3]} 22. Rf1
{[%clk 0:03:41.1]} 22... Qc5 {[%clk 0:04:16.8]} 23. Nh5 {[%clk 0:03:15.9]} 23...
Rg4 {[%clk 0:04:10.9]} 24. Be2 {[%clk 0:03:00.2]} 24... Qd4 {[%clk 0:04:01.1]}
25. Qc2 {[%clk 0:02:39.7]} 25... Rg5 {[%clk 0:03:58.5]} 26. Ng3 {[%clk
0:02:34.9]} 26... Rxe5 {[%clk 0:03:54.6]} 27. Bf3 {[%clk 0:02:30.1]} 27... Be8
{[%clk 0:03:50.3]} 28. cxd5 {[%clk 0:02:25.5]} 28... exd5 {[%clk 0:03:47.9]} 0-1

[Event "Live Chess"]
[Site "Chess.com"]
[Date "2024.06.02"]
[Round "-"]
[White "booktrunk"]
[Black "matt1979"]
[Result "0-1"]
[WhiteElo "1526"]
[BlackElo "1388"]
[TimeControl "300"]
[EndTime "23:17:04 PDT"]
[Termination "matt1979 won by checkmate"]

1. d4 {[%clk 0:04:52.5]} 1... e6 {[%clk 0:04:58]} 2. Nc3 {[%clk 0:04:49.3]} 2...
Bb4 {[%clk 0:04:55.8]} 3. Bd2 {[%clk 0:04:45.9]} 3... f5 {[%clk 0:04:50.4]} 4.
a3 {[%clk 0:04:45]} 4... Bxc3 {[%clk 0:04:48.9]} 5. Bxc3 {[%clk 0:04:43.3]} 5...
Nf6 {[%clk 0:04:48]} 6. Nf3 {[%clk 0:04:40]} 6... O-O {[%clk 0:04:45.5]} 7. e3
{[%clk 0:04:32.7]} 7... Ne4 {[%clk 0:04:41]} 8. Bb4 {[%clk 0:04:26.5]} 8... d6
{[%clk 0:04:39.3]} 9. Nd2 {[%clk 0:04:25]} 9... b6 {[%clk 0:04:28.9]} 10. Nxe4
{[%clk 0:04:22.5]} 10... fxe4 {[%clk 0:04:28]} 11. Be2 {[%clk 0:04:19.7]} 11...
Qh4 {[%clk 0:04:22.7]} 12. Bd2 {[%clk 0:04:16.2]} 12... Qxf2# {[%clk 0:04:20.3]}
0-1

[Event "Live Chess"]
[Site "Chess.com"]
[Date "2024.06.02"]
[Round "-"]
[White "Bradfield133"]
[Black "vincents82"]
[Result "1-0"]
[WhiteElo "1884"]
[BlackElo "2027"]
[TimeControl "300"]
[EndTime "23:17:22 PDT"]
[Termination "Bradfield133 won on time"]

1. c4 {[%clk 0:04:57.2]} 1... c6 {[%clk 0:04:54.4]} 2. Qa4 {[%clk 0:04:54.5]}
2... Nf6 {[%clk 0:04:49.6]} 3. g3 {[%clk 0:04:53.4]} 3... g6 {[%clk 0:04:43.8]}
4. Bg2 {[%clk 0:04:52.3]} 4... Bg7 {[%clk 0:04:43.3]} 5. Nf3 {[%clk 0:04:51.4]}
5... O-O {[%clk 0:04:42.6]} 6. O-O {[%clk 0:04:50.4]} 6... d5 {[%clk 0:04:41.9]}
7. d3 {[%clk 0:04:49.7]} 7... Bg4 {[%clk 0:04:40]} 8. Nbd2 {[%clk 0:04:44.5]}
8... Nbd7 {[%clk 0:04:38.7]} 9. h3 {[%clk 0:04:37.7]} 9... Bxf3 {[%clk
0:04:36.6]} 10. Nxf3 {[%clk 0:04:33.6]} 10... e6 {[%clk 0:04:27.8]} 11. Rb1
{[%clk 0:04:27.1]} 11... Nc5 {[%clk 0:04:20.6]} 12. Qc2 {[%clk 0:04:25.1]} 12...
Nfd7 {[%clk 0:04:17.5]} 13. b4 {[%clk 0:04:20.8]} 13... Na6 {[%clk 0:04:15.4]}
14. e4 {[%clk 0:04:09.8]} 14... Qe7 {[%clk 0:04:06]} 15. exd5 {[%clk 0:04:01.8]}
15... cxd5 {[%clk 0:04:00.9]} 16. a3 {[%clk 0:03:58.9]} 16... Rac8 {[%clk
0:03:54.5]} 17. Qe2 {[%clk 0:03:49.6]} 17... dxc4 {[%clk 0:03:41.1]} 18. dxc4
{[%clk 0:03:46.8]} 18... Rfd8 {[%clk 0:03:27.1]} 19. Bg5 {[%clk 0:03:40.1]}
19... Bf6 {[%clk 0:03:25.9]} 20. Be3 {[%clk 0:03:31.7]} 20... b6 {[%clk
0:03:23.7]} 21. Nd4 {[%clk 0:03:20.6]} 21... Nc7 {[%clk 0:03:19.2]} 22. Nc6
{[%clk 0:03:17.8]} 22... Qf8 {[%clk 0:03:18]} 23. Nxd8 {[%clk 0:03:16.6]} 23...
Qxd8 {[%clk 0:03:12.7]} 24. Rfd1 {[%clk 0:03:10.9]} 24... Qe7 {[%clk 0:03:11.7]}
25. Bf4 {[%clk 0:03:05.7]} 25... e5 {[%clk 0:03:09.6]} 26. Bc1 {[%clk
0:02:56.1]} 26... Ne6 {[%clk 0:03:08.8]} 27. Bb2 {[%clk 0:02:53.4]} 27... Re8
{[%clk 0:02:47.9]} 28. Bc6 {[%clk 0:02:43.5]} 28... Nef8 {[%clk 0:02:46.2]} 29.
Rd2 {[%clk 0:02:31.2]} 29... Rc8 {[%clk 0:02:44.9]} 30. Bd5 {[%clk 0:02:24.3]}
30... Ne6 {[%clk 0:02:41.1]} 31. Rbd1 {[%clk 0:02:15]} 31... Ndf8 {[%clk
0:02:01.6]} 32. Bxe5 {[%clk 0:01:54.6]} 32... Bxe5 {[%clk 0:02:00.4]} 33. Qxe5
{[%clk 0:01:52.5]} 33... Nd7 {[%clk 0:01:50.6]} 34. Qe2 {[%clk 0:01:42.1]} 34...
Ndf8 {[%clk 0:01:48.9]} 35. Re1 {[%clk 0:01:36.4]} 35... Qf6 {[%clk 0:01:47]}
36. Qe5 {[%clk 0:01:30]} 36... Qxe5 {[%clk 0:01:40.8]} 37. Rxe5 {[%clk
0:01:28.4]} 37... Rd8 {[%clk 0:01:35.9]} 38. Ree2 {[%clk 0:01:17.9]} 38... Rc8
{[%clk 0:01:34.6]} 39. Rc2 {[%clk 0:01:15.6]} 39... Kg7 {[%clk 0:01:33.3]} 40.
Rcd2 {[%clk 0:01:14.1]} 40... Kf6 {[%clk 0:01:32]} 41. Bxe6 {[%clk 0:01:12.7]}
41... Nxe6 {[%clk 0:01:30.9]} 42. Rd7 {[%clk 0:01:08.6]} 42... Rxc4 {[%clk
0:01:26.5]} 43. Rxa7 {[%clk 0:01:06]} 43... Nd4 {[%clk 0:01:18.2]} 44. Ree7
{[%clk 0:00:56.7]} 44... Nf3+ {[%clk 0:00:53.5]} 45. Kg2 {[%clk 0:00:53.9]}
45... Ne1+ {[%clk 0:00:52.6]} 46. Rxe1 {[%clk 0:00:48.4]} 46... Rc3 {[%clk
0:00:50.5]} 47. Ree7 {[%clk 0:00:37.8]} 47... h5 {[%clk 0:00:48.9]} 48. Rxf7+
{[%clk 0:00:36.6]} 48... Ke5 {[%clk 0:00:48.6]} 49. Rae7+ {[%clk 0:00:34.5]}
49... Kd4 {[%clk 0:00:48.1]} 50. Rf6 {[%clk 0:00:33.3]} 50... Rxa3 {[%clk
0:00:44.9]} 51. Rxb6 {[%clk 0:00:31.8]} 51... Kc4 {[%clk 0:00:44.7]} 52. Rxg6
{[%clk 0:00:30.4]} 52... Kxb4 {[%clk 0:00:43.6]} 53. Rg5 {[%clk 0:00:29.1]}
53... Kc3 {[%clk 0:00:42.8]} 54. Re4 {[%clk 0:00:27.5]} 54... Kd3 {[%clk
0:00:41.7]} 55. Rh4 {[%clk 0:00:26.2]} 55... Ra8 {[%clk 0:00:38.8]} 56. Rhxh5
{[%clk 0:00:26.1]} 56... Ke4 {[%clk 0:00:37.6]} 57. Re5+ {[%clk 0:00:24.9]}
57... Kd4 {[%clk 0:00:36.7]} 58. Rd5+ {[%clk 0:00:23.5]} 58... Kc4 {[%clk
0:00:32.5]} 59. Rc5+ {[%clk 0:00:23]} 59... Kd4 {[%clk 0:00:31.3]} 60. Rhd5+
{[%clk 0:00:21.9]} 60... Ke4 {[%clk 0:00:30.5]} 61. h4 {[%clk 0:00:21.4]} 61...
Ra6 {[%clk 0:00:26.5]} 62. h5 {[%clk 0:00:20.4]} 62... Rb6 {[%clk 0:00:26]} 63.
g4 {[%clk 0:00:19.2]} 63... Ra6 {[%clk 0:00:24.2]} 64. g5 {[%clk 0:00:18.4]}
64... Ra7 {[%clk 0:00:19.8]} 65. g6 {[%clk 0:00:17.3]} 65... Rb7 {[%clk
0:00:18.7]} 66. h6 {[%clk 0:00:16.4]} 66... Rb6 {[%clk 0:00:17.8]} 67. g7 {[%clk
0:00:12.7]} 67... Rg6+ {[%clk 0:00:13.1]} 68. Kf1 {[%clk 0:00:10.3]} 68... Kf3
{[%clk 0:00:11.7]} 69. Rf5+ {[%clk 0:00:08.3]} 69... Ke4 {[%clk 0:00:10.5]} 70.
Rce5+ {[%clk 0:00:06.5]} 70... Kd4 {[%clk 0:00:09.4]} 71. Rg5 {[%clk 0:00:05.4]}
71... Rxh6 {[%clk 0:00:07.5]} 72. g8=Q {[%clk 0:00:02.8]} 72... Rd6 {[%clk
0:00:07]} 73. Kg2 {[%clk 0:00:01.6]} 73... Kc3 {[%clk 0:00:03.9]} 74. Rc5+
{[%clk 0:00:00.4]} 74... Kb4 {[%clk 0:00:02.1]} 75. Rb5+ {[%clk 0:00:00.3]}
75... Kc3 {[%clk 0:00:00.1]} 76. Ra5 {[%clk 0:00:00.2]} 1-0